bitfinex-derivatives/quotes_ETHF0:USTF0_20250213
["timestamp","ask_amount","ask_price","bid_price","bid_amount"]
[1739424225498,3.2078,2721.5,2720.7,6.39485533]
[1739424225698,0.5535,2721.4,2721.1,3.18705533]
[1739424225894,0.73485,2721.3,2721.1,3.92193533]
[1739424227203,0.5535,2721.4,2721.1,3.18705533]
[1739424227404,0.5535,2721.4,2721.3,0.73483]
[1739424228300,0.00551005,2721.5,2721.4,0.7348]
[1739424228492,0.00551005,2721.5,2721.4,3.18705533]
[1739424228702,0.73484,2721.3,2721.1,3.92193533]
[1739424228898,1.1174,2721.2,2721.1,3.92193533]
[1739424229203,1.1174,2721.2,2721.1,3.18705533]
[1739424229204,1.85226,2721.2,2721.1,3.18705533]
[1739424229506,1.85226,2721.2,2721.1,43.98705533]
[1739424229698,1.85226,2721.2,2721.1,3.18705533]
[1739424233200,1.1174,2721.2,2721.1,3.18705533]
[1739424233396,1.1174,2721.2,2721.1,3.92194533]
[1739424235099,0.74031005,2721.5,2721.1,3.18705533]
[1739424235304,0.00551005,2721.5,2721.2,0.5615]
[1739424235612,0.74030005,2721.5,2721.4,0.7348]
[1739424235812,0.00551005,2721.5,2721.4,0.7348]
[1739424236106,0.74029005,2721.5,2721.4,3.18705533]
[1739424236311,0.73483,2721.3,2721.2,0.5615]
[1739424236514,0.00551005,2721.5,2721.1,3.92193533]
[1739424236809,0.73484,2721.3,2721.2,0.73486]
[1739424237007,0.73484,2721.3,2721.1,3.92192533]
[1739424237211,0.00551005,2721.5,2721.2,0.73486]
[1739424237412,0.00551005,2721.5,2721.2,0.73484]
[1739424237612,0.73483,2721.3,2721.2,0.73484]
[1739424237809,0.00551005,2721.5,2721.2,0.73484]
[1739424238110,0.73482,2721.4,2721.3,0.73483]
[1739424238715,0.00551005,2721.5,2721.3,0.73483]
[1739424239114,0.7348,2721.4,2721.3,0.73483]
[1739424239315,0.00551005,2721.5,2721.3,0.73483]
[1739424239509,0.74030005,2721.5,2721.3,0.73483]
[1739424239711,0.74030005,2721.5,2721.1,3.18705533]
[1739424239911,0.7348,2721.4,2721.3,0.73482]
[1739424240110,0.00551005,2721.5,2721.4,0.7348]
[1739424240615,0.73482,2721.4,2721.3,0.73482]
[1739424240914,0.00551005,2721.5,2721.2,0.5506]
[1739424241119,0.00551005,2721.5,2721.4,0.7348]
[1739424241321,0.73481,2721.4,2721.3,0.73482]
[1739424242514,0.73482,2721.4,2721.2,1.28544]
[1739424242714,0.00551005,2721.5,2721.2,1.28544]
[1739424242921,0.73483,2721.3,2721.2,1.28544]
[1739424243116,0.00551005,2721.5,2721.1,3.18705533]
[1739424243317,0.73481,2721.4,2721.3,0.73483]
[1739424244025,0.74029005,2721.5,2721.4,0.7348]
[1739424244521,0.00551005,2721.5,2721.4,0.7348]
[1739424245020,0.00551005,2721.5,2721.4,3.92185533]
[1739424245217,0.00551005,2721.5,2721.4,4.99945533]
[1739424251727,0.74029005,2721.5,2721.4,1.0776]
[1739424251923,0.74029005,2721.5,2721.4,0.5381]
[1739424252619,0.7348,2721.4,2721.3,1.662]
[1739424252815,1.3197,2721.4,2721.3,1.662]
[1739424253019,0.5849,2721.4,2720.8,3.18705533]
[1739424253220,0.73487,2721.2,2720.9,0.74045005]
[1739424253522,0.73487,2721.2,2720.9,0.74043005]
[1739424254029,0.73491,2721.0,2720.9,0.00551005]
[1739424255431,4.3579,2721.3,2720.9,0.74044005]
[1739424255626,0.73487,2721.2,2721.0,0.7349]
[1739424255832,4.3579,2721.3,2720.9,0.00551005]
[1739424256130,0.73489,2721.1,2720.9,0.74044005]
[1739424256629,0.73491,2721.1,2720.9,0.00551005]
[1739424256828,0.73491,2721.0,2720.9,0.00551005]
[1739424257632,4.3579,2721.3,2720.9,0.74043005]
[1739424257934,0.7349,2721.1,2720.9,0.74043005]
[1739424258832,4.3579,2721.3,2720.9,0.00551005]
[1739424259031,0.73487,2721.2,2721.0,0.7349]
[1739424259232,4.3579,2721.3,2720.9,0.00551005]
[1739424259431,0.7349,2721.1,2720.9,0.74044005]
[1739424260127,0.7349,2721.1,2720.9,0.00551005]
[1739424260431,0.7349,2721.1,2721.0,0.73491]
[1739424261237,0.7349,2721.1,2720.9,0.00551005]
[1739424261836,0.7349,2721.1,2721.0,40.8]
[1739424262234,0.7349,2721.1,2721.0,0.73491]
[1739424262537,0.73491,2721.0,2720.9,0.00551005]
[1739424262728,0.73491,2721.0,2720.9,40.80551005]
[1739424262927,0.73491,2721.0,2720.9,41.54045005]
[1739424263230,0.73491,2721.0,2720.9,0.00551005]
[1739424269435,0.7349,2721.1,2721.0,0.73491]
[1739424269632,4.3579,2721.3,2720.9,0.59701005]
[1739424269943,0.73491,2721.0,2720.9,1.33194005]
[1739424270145,0.7349,2721.1,2720.9,0.59701005]
[1739424270439,0.73491,2721.0,2720.9,1.33194005]
[1739424270741,0.73491,2721.1,2720.9,1.33194005]
[1739424271043,0.73491,2721.1,2721.0,40.8]
[1739424271247,0.5837,2721.3,2721.0,40.8]
[1739424271547,1.31854,2721.3,2721.1,0.73487]
[1739424272846,0.73487,2721.2,2721.1,0.73488]
[1739424273045,1.31854,2721.3,2721.1,0.73488]
[1739424274044,0.73488,2721.2,2721.1,0.73488]
[1739424274544,1.31854,2721.3,2721.2,0.73486]
[1739424274847,1.31854,2721.3,2721.0,40.8]
[1739424275145,0.5837,2721.3,2721.2,0.73486]
[1739424275442,0.5837,2721.3,2721.0,40.8]
[1739424275645,0.73487,2721.2,2721.1,0.73488]
[1739424275845,0.73487,2721.2,2721.1,0.73489]
[1739424276339,0.5837,2721.3,2721.2,0.73486]
[1739424276546,0.73486,2721.2,2721.1,0.73487]
[1739424277542,0.5837,2721.3,2721.0,40.8]
[1739424277744,1.31855,2721.3,2721.0,40.8]
[1739424278143,1.31855,2721.3,2721.2,0.73486]
[1739424278647,0.73486,2721.2,2721.1,0.73487]
[1739424278944,0.73488,2721.2,2721.1,0.73488]
[1739424279738,0.5837,2721.3,2721.1,0.73488]
[1739424279946,0.73486,2721.2,2721.1,0.73488]
[1739424280147,1.31855,2721.3,2721.2,0.73486]
[1739424280548,0.73487,2721.2,2721.1,0.73488]
[1739424281249,0.5837,2721.3,2720.9,41.39701005]
[1739424281444,0.73491,2721.1,2720.9,41.39701005]
[1739424281645,0.73491,2721.1,2721.0,0.73491]
[1739424282550,0.73491,2721.0,2720.9,0.59701005]
[1739424282749,0.73491,2721.0,2720.9,1.33195005]
[1739424284252,0.73491,2721.0,2720.9,0.59701005]
[1739424284453,0.5837,2721.3,2720.9,0.59701005]
[1739424284754,0.7349,2721.1,2721.0,0.7349]
[1739424284954,0.73491,2721.0,2720.9,1.33194005]
[1739424285654,0.73491,2721.0,2720.9,2.02376965]
[1739424286253,0.73491,2721.0,2720.9,1.43226965]
[1739424286750,0.73491,2721.0,2720.9,0.00551005]
[1739424287655,0.73491,2721.0,2720.9,1.43226965]
[1739424288052,0.73491,2721.0,2720.9,2.16720965]
[1739424288256,0.73491,2721.0,2720.9,1.43226965]
[1739424291658,0.73491,2721.0,2720.9,0.00551005]
[1739424298557,0.73491,2721.0,2720.9,0.74045005]
[1739424299259,0.73491,2721.0,2720.9,1.43226965]
[1739424299561,0.73491,2721.0,2720.9,0.00551005]
[1739424303157,2.1616696,2721.0,2720.9,0.00551005]
[1739424305569,0.73491,2721.0,2720.9,0.00551005]
[1739424307564,1.4267596,2721.0,2720.4,0.5539]
[1739424307761,0.73505,2720.5,2720.4,0.5539]
[1739424309668,0.73505,2720.5,2720.4,1.28897]
[1739424309866,0.73505,2720.5,2720.4,1.28896]
[1739424310872,1.1412,2720.9,2720.5,0.73503]
[1739424310873,0.73501,2720.7,2720.5,0.73503]
[1739424311075,0.73501,2720.7,2720.6,1.4267596]
[1739424311374,0.73501,2720.7,2720.6,42.2267596]
[1739424313074,0.73501,2720.7,2720.6,1.4267596]
[1739424313373,0.73505,2720.5,2720.4,1.9806596]
[1739424314175,0.73505,2720.5,2720.4,0.5539]
[1739424314371,1.4267596,2720.6,2720.3,0.5757]
[1739424314575,1.30467,2720.4,2720.3,0.5757]
[1739424315770,1.30467,2720.4,2720.2,0.00551005]
[1739424315967,0.7351,2720.3,2720.2,0.00551005]
[1739424322576,0.7351,2720.3,2719.4,0.73533]
[1739424322577,9.77710681,2720.3,2719.5,0.5392]
[1739424322774,0.73529,2719.6,2719.5,0.5392]
[1739424322980,0.73534,2719.4,2719.3,3.7746]
[1739424323176,0.73537,2719.3,2719.2,41.3392]
[1739424323482,0.7354,2719.2,2719.1,0.5376]
[1739424324482,0.00551005,2719.5,2719.1,3.7454]
[1739424324683,0.73538,2719.3,2719.1,4.48082]
[1739424325378,0.00551005,2719.5,2719.1,0.5376]
[1739424325873,0.73535,2719.4,2719.1,3.7454]
[1739424326074,0.7354,2719.2,2719.1,3.7454]
[1739424326278,0.00551005,2719.5,2719.1,3.7454]
[1739424326681,0.7354,2719.2,2719.1,3.7454]
[1739424326882,0.00551005,2719.5,2719.1,3.7454]
[1739424327082,0.7354,2719.2,2719.1,3.7454]
[1739424327283,0.00551005,2719.5,2719.1,3.7454]
[1739424327582,0.73539,2719.3,2719.1,4.48082]
[1739424327782,0.73539,2719.3,2719.1,3.7454]
[1739424327982,0.00551005,2719.5,2719.1,3.7454]
[1739424328183,0.7354,2719.2,2719.1,3.7454]
[1739424328485,0.7354,2719.2,2719.1,0.5376]
[1739424329687,3.9432,2719.2,2719.1,0.5376]
[1739424329979,3.2078,2719.2,2719.0,0.5392]
[1739424330187,1.88363,2719.1,2719.0,0.5392]
[1739424334083,0.73541,2719.2,2719.0,3.72920681]
[1739424334283,0.00551005,2719.5,2719.1,3.7854]
[1739424334585,0.00551005,2719.5,2719.4,3.94314]
[1739424334881,0.74083005,2719.5,2719.4,0.589]
[1739424335285,0.74083005,2719.5,2719.4,41.389]
[1739424336489,0.74083005,2719.5,2719.4,0.589]
[1739424341586,0.00551005,2719.5,2719.1,0.5776]
[1739424341783,0.7354,2719.2,2719.1,0.5463]
[1739424344991,3.7976,2719.3,2719.0,0.5392]
[1739424345190,0.73545,2719.0,2718.9,0.00551005]
[1739424347396,3.94325,2719.0,2718.9,0.00551005]
[1739424351907,0.73545,2719.0,2718.9,0.00551005]
[1739424352694,3.94325,2719.0,2718.9,0.00551005]
[1739424354703,0.73567,2718.2,2718.1,7.70989681]
[1739424354898,2.42081,2718.9,2718.1,7.56310681]
[1739424355513,0.73558,2718.6,2718.5,0.73558]
[1739424355811,0.5821,2718.9,2718.5,3.2078]
[1739424356012,0.73553,2718.7,2718.6,1.32445]
[1739424356198,0.5821,2718.9,2718.6,1.1767]
[1739424356507,0.5525,2719.2,2718.7,1.31183]
[1739424356806,0.73549,2718.9,2718.7,4.50183681]
[1739424357703,0.73549,2718.9,2718.8,0.73551]
[1739424358111,0.73549,2718.9,2718.7,3.76630681]
[1739424358300,0.5821,2719.2,2718.7,4.50181681]
[1739424358501,0.73549,2718.9,2718.8,0.73551]
[1739424358702,0.73549,2718.9,2718.7,4.50182681]
[1739424359110,0.73549,2718.9,2718.7,3.76630681]
[1739424359307,3.2078,2719.3,2718.8,3.2078]
[1739424359610,0.00551005,2719.5,2719.1,3.19000681]
[1739424359810,0.00551005,2719.5,2719.2,1.6892]
[1739424360012,0.73536,2719.4,2719.2,42.4892]
[1739424361005,0.73537,2719.3,2719.2,42.4892]
[1739424361309,0.00551005,2719.5,2719.2,42.4892]
[1739424361506,0.73535,2719.4,2719.2,43.22459]
[1739424361706,0.73535,2719.4,2719.2,42.4892]
[1739424362109,0.73535,2719.4,2719.2,43.2246]
[1739424362305,0.00551005,2719.5,2719.2,42.4892]
[1739424362611,0.00551005,2719.5,2719.4,3.92534681]
[1739424362815,0.00551005,2719.5,2719.4,5.58534681]
[1739424363018,0.00551005,2719.5,2719.4,8.79314681]
[1739424363308,3.63085106,2734.2,2719.4,8.79314681]
[1739424363309,0.73519,2720.0,2719.7,0.73524]
[1739424363616,3.94297,2720.1,2719.8,2.40212]
[1739424364116,0.7351,2720.3,2720.0,7.13297681]
[1739424364317,0.7351,2720.3,2720.0,7.43035156]
[1739424364819,0.74060005,2720.4,2720.1,0.73515]
[1739424365213,0.00551005,2720.4,2720.0,6.69518156]
[1739424365409,0.00551005,2720.4,2720.3,3.19000681]
[1739424365616,0.74058005,2720.4,2720.3,3.19000681]
[1739424366220,0.00551005,2720.4,2720.3,7.13290681]
[1739424370529,0.03662244,2721.0,2720.3,11.11744049]
[1739424370822,0.03662244,2721.0,2720.6,3.92501681]
[1739424370823,0.73495,2720.9,2720.6,3.92501681]
[1739424371418,0.03662244,2721.0,2720.6,3.19000681]
[1739424371619,0.73498,2720.8,2720.6,3.19000681]
[1739424372820,0.73498,2720.8,2720.6,3.92500681]
[1739424373025,0.73495,2720.9,2720.6,3.19000681]
[1739424373323,0.73495,2720.9,2720.7,0.73499]
[1739424374121,0.04213249,2721.0,2720.8,0.73495]
[1739424374317,0.74043005,2721.0,2720.8,0.73496]
[1739424374520,0.73495,2720.9,2720.7,0.73498]
[1739424374727,0.00551005,2721.0,2720.7,0.73498]
[1739424375224,0.00551005,2721.0,2720.9,3.92494681]
[1739424375423,0.00551005,2721.0,2720.9,5.58394681]
[1739424375726,0.00551005,2721.0,2720.9,8.79174681]
[1739424377228,0.73481,2721.4,2721.2,0.73484]
[1739424377427,1.1363,2721.6,2721.3,0.5366]
[1739424377620,0.7348,2721.4,2721.3,0.5366]
[1739424379328,1.14181005,2721.6,2721.0,1.0893]
[1739424379527,1.14181005,2721.6,2721.3,3.19000681]
[1739424380029,1.87658005,2721.6,2721.4,1.2692]
[1739424380528,1.87656005,2721.6,2721.4,1.26918]
[1739424380730,0.73478,2721.5,2721.4,0.5344]
[1739424380927,4.34961005,2721.6,2721.0,7.48710681]
[1739424381117,0.73488,2721.2,2721.0,8.75641681]
[1739424381323,1.14181005,2721.6,2721.0,8.02150681]
[1739424381633,1.14181005,2721.6,2721.5,3.2078]
[1739424381821,0.00551005,2721.6,2721.5,3.94258]
[1739424382023,0.00551005,2721.6,2721.5,4.8658]
[1739424382226,0.00551005,2721.6,2721.5,5.4425]
[1739424382430,0.00551005,2721.6,2721.3,0.00551005]
[1739424382627,0.7348,2721.4,2721.3,0.00551005]
[1739424384230,1.6486,2721.5,2720.5,3.2078]
[1739424384432,0.735,2720.7,2720.5,4.8658]
[1739424384636,0.735,2720.7,2720.6,40.8]
[1739424385133,0.73499,2720.7,2720.6,40.8]
[1739424385330,0.5421,2721.1,2720.6,40.8]
[1739424385531,0.73502,2720.6,2720.5,3.2078]
[1739424385835,0.73505,2720.5,2720.4,0.00551005]
[1739424387525,1.31835,2720.5,2720.4,0.00551005]
[1739424387927,1.31835,2720.5,2719.6,1.658]
[1739424387928,0.73524,2719.8,2719.6,1.658]
[1739424388536,0.73522,2719.9,2719.7,40.8]
[1739424388730,0.73524,2719.8,2719.7,40.8]
[1739424389537,0.58661005,2720.0,2719.7,40.8]
[1739424390236,0.73523,2719.9,2719.7,40.8]
[1739424391336,1.17641005,2720.0,2719.7,40.8]
[1739424391538,1.17641005,2720.0,2719.8,0.73521]
[1739424391940,0.00551005,2720.0,2719.8,0.73521]
[1739424392435,0.00551005,2720.0,2719.8,0.73524]
[1739424392636,0.74071005,2720.0,2719.7,41.53525]
[1739424393431,0.00551005,2720.0,2719.8,0.73524]
[1739424393837,0.00551005,2720.0,2719.9,0.73521]
[1739424394038,0.00551005,2720.0,2719.9,1.30271]
[1739424394833,0.00551005,2720.0,2719.8,6.39780681]
[1739424395140,0.73526,2719.7,2719.6,0.5675]
[1739424395641,0.73529,2719.6,2719.5,3.19551686]
[1739424395837,0.73529,2719.6,2719.5,0.00551005]
[1739424401133,0.5759,2719.7,2719.5,0.00551005]
[1739424401338,0.5929,2719.8,2719.5,3.19551686]
[1739424401643,0.73521,2719.9,2719.7,3.94305]
[1739424402749,0.59531005,2720.0,2719.6,0.554]
[1739424403042,0.73526,2719.7,2719.6,0.554]
[1739424403245,0.73529,2719.6,2719.5,0.00551005]
[1739424403844,0.5387,2719.8,2719.5,0.00551005]
[1739424404038,1.27396,2719.8,2719.6,0.73529]
[1739424404344,0.5387,2719.8,2719.7,0.73526]
[1739424404647,0.5387,2719.8,2719.6,0.73528]
[1739424405046,1.27395,2719.8,2719.6,0.73528]
[1739424405648,0.73522,2719.9,2719.7,1.30885]
[1739424406050,0.59531005,2720.0,2719.7,0.5736]
[1739424406247,0.59531005,2720.0,2719.9,0.73521]
[1739424406948,0.00551005,2720.0,2719.8,0.5519]
[1739424407147,0.00551005,2720.0,2719.9,0.73521]
[1739424408345,0.00551005,2720.0,2719.8,0.5519]
[1739424408547,0.74071005,2720.0,2719.8,1.28712]
[1739424409246,0.00551005,2720.0,2719.8,3.74190681]
[1739424409448,0.00551005,2720.0,2719.9,0.73521]
[1739424411944,0.00551005,2720.0,2719.8,3.74190681]
[1739424412139,0.00551005,2720.0,2719.7,3.7814]
[1739424412338,0.73529,2719.6,2719.5,7.68331686]
[1739424412545,0.73529,2719.6,2719.5,3.74021686]
[1739424412738,0.73529,2719.6,2719.5,0.55021005]
[1739424413648,0.73529,2719.6,2719.5,0.00551005]
[1739424416752,0.73529,2719.6,2718.8,1.87279]
[1739424416753,0.73547,2719.0,2718.8,1.87279]
[1739424417147,0.73547,2719.0,2718.9,0.73548]
[1739424417343,0.73544,2719.1,2718.9,0.73548]
[1739424417950,3.7872,2719.4,2718.8,1.43541209]
[1739424418146,0.73541,2719.2,2719.0,0.73544]
[1739424418455,0.73539,2719.3,2719.1,0.73543]
[1739424419246,0.73539,2719.3,2718.9,3.19000681]
[1739424419445,3.7872,2719.4,2718.9,3.19000681]
[1739424419650,0.7354,2719.3,2718.9,3.19000681]
[1739424419958,0.7354,2719.3,2719.1,0.73541]
[1739424420457,0.7354,2719.3,2718.9,3.19000681]
[1739424420658,0.7354,2719.3,2719.1,0.73542]
[1739424420859,3.7872,2719.4,2718.9,3.19000681]
[1739424421058,0.73538,2719.3,2719.1,0.73541]
[1739424421254,3.7872,2719.4,2718.9,3.19000681]
[1739424421453,0.73543,2719.1,2719.0,0.73545]
[1739424421647,0.73545,2719.1,2718.9,3.92547681]
[1739424422157,0.7354,2719.3,2718.9,3.19000681]
[1739424422353,0.7354,2719.3,2719.2,0.7354]
[1739424422548,1.31477,2719.4,2719.2,0.7354]
[1739424422750,0.73537,2719.3,2719.2,0.7354]
[1739424423060,3.7503,2719.8,2719.0,0.5722]
[1739424423254,4.3134,2719.8,2719.2,6.39780681]
[1739424423451,4.3134,2719.8,2719.7,0.73526]
[1739424423653,0.5425,2719.8,2719.7,0.73526]
[1739424423852,0.74071005,2720.0,2719.8,0.73522]
[1739424424454,0.73521,2719.9,2719.7,0.73524]
[1739424425565,0.00551005,2720.0,2719.6,3.78]
[1739424425766,0.00551005,2720.0,2719.9,0.73521]
[1739424426055,3.2078,2720.9,2719.9,5.60001]
[1739424426263,0.73504,2720.6,2720.3,3.92509681]
[1739424426564,0.73505,2720.6,2720.3,3.92510681]
[1739424426757,0.73505,2720.6,2720.3,0.7351]
[1739424427355,1.16924003,2720.8,2720.2,3.94842005]
[1739424427356,0.73505,2720.5,2720.2,3.94842005]
[1739424427559,0.73505,2720.5,2720.2,0.74062005]
[1739424428358,0.73504,2720.6,2720.3,0.7351]
[1739424428662,0.73503,2720.6,2720.3,0.73509]
[1739424428962,0.00551005,2720.7,2720.2,3.21331005]
[1739424429163,0.00551005,2720.7,2720.3,0.5751]
[1739424429563,3.21331005,2720.7,2720.4,0.73507]
[1739424429865,3.21331005,2720.7,2720.3,0.5751]
[1739424430059,0.73506,2720.5,2720.3,0.5751]
[1739424430361,0.73506,2720.5,2720.3,1.3102]
[1739424430961,0.73506,2720.5,2720.2,3.94843005]
[1739424431163,3.21331005,2720.7,2720.2,3.21331005]
[1739424431662,0.7351,2720.3,2720.2,3.21331005]
[1739424431857,3.21331005,2720.7,2720.2,3.21331005]
[1739424432067,6.40331686,2720.7,2720.2,0.00551005]
[1739424432262,0.7351,2720.3,2720.2,0.00551005]
[1739424432864,1.2775,2720.3,2720.2,0.00551005]
[1739424433259,0.5424,2720.3,2720.2,0.74064005]
[1739424433563,1.2775,2720.3,2720.2,0.00551005]
[1739424433865,0.5424,2720.3,2720.2,0.74064005]
[1739424435959,0.73507,2720.5,2720.2,0.74064005]
[1739424436156,0.5518,2720.6,2720.2,0.00551005]
[1739424436665,1.28684,2720.6,2720.4,0.73506]
[1739424436964,0.5518,2720.6,2720.2,0.00551005]
[1739424437170,0.5518,2720.6,2720.5,0.73505]
[1739424437467,3.94832005,2720.7,2720.3,4.31770681]
[1739424437666,3.94832005,2720.7,2720.5,0.73503]
[1739424437861,3.21331005,2720.7,2720.5,0.73503]
[1739424438071,0.73502,2720.6,2720.5,0.73503]
[1739424438362,0.00551005,2720.7,2720.6,0.73502]
[1739424440469,0.00551005,2720.7,2720.6,1.31472]
[1739424445583,0.00551005,2720.7,2720.6,4.50472681]
[1739424446074,0.00551005,2720.7,2720.6,45.30472681]
[1739424447376,1.0811,2721.2,2720.7,1.83749]
[1739424447579,1.81598,2721.2,2721.0,0.7349]
[1739424448776,0.73489,2721.1,2721.0,0.7349]
[1739424449477,1.0811,2721.2,2720.8,1.1067]
[1739424449673,1.0811,2721.2,2721.0,0.73489]
[1739424449871,1.81598,2721.2,2721.0,0.73489]
[1739424450174,1.0811,2721.2,2721.0,0.73489]
[1739424450374,0.73489,2721.1,2721.0,0.73489]
[1739424450573,1.0811,2721.2,2720.8,1.1067]
[1739424450771,1.81598,2721.2,2721.0,0.73489]
[1739424450972,0.73489,2721.1,2721.0,0.73489]
[1739424451173,1.0811,2721.2,2721.0,0.73489]
[1739424452077,0.73489,2721.1,2721.0,0.73489]
[1739424452282,0.00551005,2721.4,2720.9,3.19000681]
[1739424452482,0.00551005,2721.4,2721.0,1.656]
[1739424452685,0.73489,2721.1,2721.0,2.3909]
[1739424452982,0.73489,2721.1,2721.0,1.656]
[1739424453281,0.73489,2721.1,2721.0,2.39091]
[1739424453678,0.73489,2721.1,2721.0,1.656]
[1739424454981,0.00551005,2721.4,2720.8,1.1067]
[1739424455176,0.73499,2720.7,2720.6,43.0357]
[1739424455380,0.73498,2720.8,2720.7,0.73498]
[1739424455776,6.39780681,2721.3,2720.6,43.0357]
[1739424455977,1.1108,2721.0,2720.7,0.73498]
[1739424456172,0.73497,2720.8,2720.7,0.73498]
[1739424457178,0.00551005,2721.4,2720.7,5.04529]
[1739424457378,0.74033005,2721.4,2721.2,0.73486]
[1739424457880,0.73483,2721.3,2721.2,0.73486]
[1739424458183,1.29053,2721.3,2721.2,0.73486]
[1739424458382,1.29053,2721.3,2721.1,0.73487]
[1739424458579,0.5557,2721.3,2720.9,1.655]
[1739424458889,3.2078,2721.2,2720.3,8.05280681]
[1739424459078,3.2078,2721.2,2720.7,3.2078]
[1739424459384,3.2078,2721.2,2721.0,0.7349]
[1739424459581,0.73487,2721.2,2720.8,1.6671]
[1739424459788,0.73492,2721.0,2720.8,2.40205]
[1739424459981,1.9063,2721.1,2720.8,2.40205]
[1739424460183,1.1714,2721.1,2720.8,1.1219]
[1739424460380,0.73497,2720.8,2720.7,0.73498]
[1739424460590,1.1714,2721.1,2720.6,3.19000681]
[1739424460788,0.73499,2720.7,2720.5,42.36580122]
[1739424460988,1.1714,2720.6,2720.5,42.07204]
[1739424461178,1.1714,2720.6,2720.5,0.537]
[1739424461483,1.90642,2720.6,2720.4,6.18275]
[1739424461681,1.1714,2720.6,2720.5,0.73505]
[1739424467489,0.73495,2720.9,2720.7,0.73498]
[1739424467891,1.64619287,2721.0,2720.6,3.19000681]
[1739424468103,1.1292,2721.0,2720.9,0.73494]
[1739424468507,1.86411,2721.0,2720.9,0.73494]
[1739424468709,1.86411,2721.0,2720.8,0.73496]
[1739424469302,1.86411,2721.0,2720.7,0.5519]
[1739424469502,1.86411,2721.0,2720.9,0.73494]
[1739424470612,1.1292,2721.0,2720.9,0.73494]
[1739424470807,1.86412,2721.0,2720.8,0.73494]
[1739424471010,1.86412,2721.0,2720.7,0.5519]
[1739424471310,1.1292,2721.0,2720.9,0.73494]
[1739424473210,0.52257036,2721.4,2720.9,3.19000681]
[1739424473408,0.52257036,2721.4,2721.2,0.73485]
[1739424473409,0.73484,2721.3,2721.2,0.73485]
[1739424473813,0.73484,2721.3,2721.1,1.29107]
[1739424474909,0.73485,2721.3,2721.1,1.29107]
[1739424475512,1.17491005,2721.4,2721.1,1.29107]
[1739424475715,0.73486,2721.2,2721.1,1.29107]
[1739424476014,0.73491,2721.1,2720.9,0.73492]
[1739424476312,0.73491,2721.1,2720.8,1.655]
[1739424476613,0.5664,2721.0,2720.9,0.73494]
[1739424479410,1.1026358,2721.4,2721.3,0.73483]
[1739424479608,1.1026358,2721.4,2721.2,0.73484]
[1739424479811,0.58521005,2721.4,2721.1,3.94267]
[1739424480009,0.73486,2721.2,2721.0,0.7349]
[1739424480211,0.5835,2721.3,2720.9,0.73493]
[1739424480416,0.73491,2721.0,2720.9,0.73493]
[1739424480607,0.73489,2721.1,2720.9,0.73492]
[1739424481110,1.1274,2721.3,2720.8,1.655]
[1739424481111,0.5835,2721.3,2721.0,6.39780681]
[1739424481310,0.5835,2721.3,2721.2,0.73486]
[1739424481811,0.5835,2721.3,2721.2,1.32696]
[1739424482614,1.31833,2721.3,2721.2,1.32696]
[1739424482814,1.31833,2721.3,2721.2,0.5921]
[1739424483815,0.5835,2721.3,2721.1,0.5764]
[1739424484112,5.04497,2721.2,2720.7,3.2078]
[1739424484311,0.73497,2720.8,2720.7,3.94278]
[1739424484718,0.73495,2720.9,2720.7,3.2078]
[1739424485013,1.1545,2720.8,2720.7,3.94279]
[1739424488818,1.1545,2720.8,2720.7,0.73499]
[1739424490115,0.7349,2721.1,2720.6,3.3496]
[1739424490318,0.5354,2721.1,2720.7,3.19000681]
[1739424490518,1.2703,2721.1,2720.9,0.73491]
[1739424490815,1.28638,2721.2,2721.0,0.7349]
[1739424491010,1.28638,2721.2,2720.7,3.19000681]
[1739424491214,1.28638,2721.2,2721.0,0.73489]
[1739424491618,1.28638,2721.2,2721.1,0.73489]
[1739424491911,0.54091005,2721.4,2721.0,3.19000681]
[1739424492109,0.00551005,2721.4,2721.3,0.73483]
[1739424492309,0.00551005,2721.4,2721.3,3.92483681]
[1739424492713,0.74031005,2721.4,2721.3,3.92483681]
[1739424492916,0.00551005,2721.4,2721.3,3.92483681]
[1739424493417,0.00551005,2721.4,2721.1,3.3177]
[1739424493618,0.73484,2721.3,2721.1,2.39857]
[1739424494217,1.27514,2721.3,2721.1,2.39857]
[1739424494514,1.27515,2721.3,2721.1,2.39858]
[1739424495114,0.5403,2721.3,2721.2,0.73486]
[1739424496113,0.5403,2721.3,2721.1,1.6637]
[1739424496307,0.5403,2721.3,2721.1,2.39859]
[1739424496514,0.73486,2721.2,2721.1,1.6637]
[1739424497516,0.5403,2721.3,2721.1,2.39857]
[1739424498017,0.73486,2721.2,2721.1,2.39857]
[1739424498719,1.27514,2721.3,2721.2,0.73486]
[1739424499825,1.27513,2721.3,2721.2,0.73486]
[1739424500212,0.5403,2721.3,2721.2,0.73486]
[1739424500920,0.00551005,2721.4,2721.3,0.73483]
[1739424503220,0.00551005,2721.4,2721.3,3.92483681]
[1739424505123,0.74031005,2721.4,2721.3,3.92483681]
[1739424505327,0.74031005,2721.4,2721.2,0.73484]
[1739424505824,0.74031005,2721.4,2721.1,4.8715]
[1739424506123,0.74031005,2721.4,2721.3,0.73483]
[1739424507424,0.00551005,2721.4,2721.3,0.73483]
[1739424507628,0.74031005,2721.4,2721.3,0.73483]
[1739424510129,0.74032005,2721.4,2721.3,0.73483]
[1739424510326,0.00551005,2721.4,2721.1,4.8715]
[1739424510526,0.5686,2721.3,2721.2,0.73486]
[1739424511725,0.5686,2721.3,2721.1,4.8715]
[1739424512022,1.30345,2721.3,2721.2,0.73486]
[1739424512629,0.5686,2721.3,2721.1,5.06857]
[1739424512833,0.5686,2721.3,2721.1,4.3337]
[1739424512834,0.73486,2721.2,2721.1,4.3337]
[1739424513126,0.73486,2721.2,2721.1,3.7717]
[1739424514023,0.5686,2721.3,2720.7,5.59578]
[1739424514024,0.73494,2720.9,2720.7,5.59578]
[1739424514340,0.5686,2721.3,2721.0,0.7349]
[1739424514341,0.73487,2721.2,2721.0,0.7349]